[Event "Live Chess"]
[Site "Chess.com"]
[Date "2021.09.04"]
[Round "?"]
[White "ezryn1"]
[Black "camilambandi"]
[Result "1-0"]
[ECO "C00"]
[WhiteElo "834"]
[BlackElo "785"]
[PlyCount "51"]
[EventDate "2021.??.??"]
[TimeControl "600"]
[WhiteClock "0:07:10"]
[BlackClock "0:07:06"]

{[%evp 0,51,27,24,52,41,63,19,7,21,26,45,30,-47,15,-1,21,0,-1,-5,11,-4,83,-64,
-64,-62,-47,-77,-30,-34,-52,-46,15,-71,2,42,85,154,134,134,158,-70,-61,-29,
1008,1008,29989,29990,29991,29992,29997,29998,29999,-30000]} 1. e4 {[%emt 0:00:
00] CASTLING BREAKDOWN} e6 {[%emt 0:00:03]} 2. d4 {[%emt 0:00:02]} c5 {[%emt 0:
00:47]} 3. c3 {[%emt 0:00:14]} cxd4 {[%emt 0:00:02]} 4. cxd4 {[%emt 0:00:01]}
Nf6 {[%emt 0:00:04]} 5. e5 {[%emt 0:00:03]} Nd5 {[%emt 0:00:02]} 6. f4 {
[%emt 0:00:09]} Bb4+ {[%emt 0:00:23]} 7. Bd2 {[%emt 0:00:05]} Bxd2+ {[%emt 0:
00:02]} 8. Nxd2 {[%emt 0:00:06]} Nxf4 {[%emt 0:00:09]} 9. Ngf3 $6 {[%emt 0:00:
15]} Nc6 {[%emt 0:00:03]} 10. Ne4 {[%emt 0:00:15]} d5 $2 {[%emt 0:00:06]} 11.
exd6 {[%emt 0:00:01]} O-O {[%emt 0:00:10]} 12. Qd2 {[%emt 0:00:05]} Nd5 {
[%emt 0:00:17]} 13. O-O-O $6 {[%emt 0:00:07]} Bd7 $6 {[%emt 0:00:04]} 14. g4 $6
{[%emt 0:00:07]} Rc8 {[%emt 0:00:01]} 15. Kb1 {[%emt 0:00:02]} a6 $2 {[%emt 0:
00:09]} 16. h4 {[%emt 0:00:03]} b5 $2 {[%emt 0:00:01]} 17. g5 {[%emt 0:00:02]}
b4 $6 {[%emt 0:00:08]} 18. h5 {[%emt 0:00:02]} b3 {[%emt 0:00:01]} 19. a3 {
[%emt 0:00:02]} a5 {[%emt 0:00:02]} 20. g6 $6 {[%emt 0:00:07] Which could be
either a great idea or a lucky blunder} fxg6 {[%emt 0:00:06]} 21. hxg6 $3 {
[%emt 0:00:00]} h6 $4 {[%emt 0:00:02]} (21... Rxf3 22. Rxh7) 22. Rxh6 $3 {
[%emt 0:00:40]} Rxf3 $2 {[%emt 0:00:05]} 23. Rh8+ $3 {[%emt 0:00:19]} Kxh8 {
[%emt 0:00:01]} 24. Qh2+ $1 {[%emt 0:00:01]} Kg8 {[%emt 0:00:02]} 25. Qh7+ $1 {
[%emt 0:00:01]} Kf8 {[%emt 0:00:04]} 26. Qh8# $1 {[%emt 0:00:01] ezryn1 won by
checkmate 1-0 White wins.} 1-0

[Event "Live Chess"]
[Site "Chess.com"]
[Date "2021.11.05"]
[Round "?"]
[White "hollacompadre"]
[Black "netofarthur"]
[Result "1-0"]
[ECO "E12"]
[WhiteElo "936"]
[BlackElo "952"]
[Annotator "chess-teacher.com"]
[PlyCount "51"]
[EventDate "2021.??.??"]
[TimeControl "300"]
[WhiteClock "0:02:15"]
[BlackClock "0:02:04"]

{[%evp 0,51,23,32,26,-19,-11,6,34,30,55,17,29,28,24,23,30,17,23,-16,6,-24,-9,
-27,-11,-29,-12,-12,9,-13,11,-2,11,-40,-14,-23,215,258,444,462,509,501,616,624,
673,675,705,652,637,687,862,927,973,905]} 1. d4 {[%emt 0:00:01]} Nf6 {[%emt 0:
00:02]} 2. c4 {[%emt 0:00:01]} e6 {[%emt 0:00:01]} 3. Nc3 {[%emt 0:00:03]} b6 {
[%emt 0:00:02]} 4. Nf3 {[%emt 0:00:03]} Be7 $6 {[%emt 0:00:06]} 5. e3 {[%emt 0:
00:04]} O-O {[%emt 0:00:13]} 6. Bd3 {[%emt 0:00:02]} Bb7 {[%emt 0:00:09]} 7.
O-O {[%emt 0:00:05]} d5 {[%emt 0:00:04]} 8. b3 {[%emt 0:00:10]} Nbd7 {[%emt 0:
00:14]} 9. a4 {[%emt 0:00:06]} c5 {[%emt 0:00:06]} 10. h3 {[%emt 0:00:07]} Rc8
{[%emt 0:00:02]} 11. Ba3 {[%emt 0:00:03]} cxd4 {[%emt 0:00:14]} 12. Bxe7 {
[%emt 0:00:03]} Qxe7 {[%emt 0:00:01]} 13. exd4 {[%emt 0:00:02]} Rfd8 {[%emt 0:
00:20]} 14. Re1 {[%emt 0:00:04]} dxc4 {[%emt 0:00:02]} 15. bxc4 {[%emt 0:00:02]
} Nf8 {[%emt 0:00:15]} 16. d5 $6 {[%emt 0:00:05]} Nxd5 {[%emt 0:00:16]} 17.
Nxd5 {[%emt 0:00:15]} Bxd5 {[%emt 0:00:01]} 18. cxd5 {[%emt 0:00:05]} Rxd5 $6 {
[%emt 0:00:01]} 19. Bxh7+ $3 {[%emt 0:00:51]} Kxh7 {[%emt 0:00:06]} 20. Qxd5 $3
{[%emt 0:00:02]} exd5 {[%emt 0:00:02]} 21. Rxe7 {[%emt 0:00:01]} a6 {[%emt 0:
00:10]} 22. Rxf7 {[%emt 0:00:06]} Ne6 {[%emt 0:00:05]} 23. a5 {[%emt 0:00:07]}
b5 {[%emt 0:00:02]} 24. Ra7 {[%emt 0:00:09]} Nc5 {[%emt 0:00:12]} 25. Rc1 {
[%emt 0:00:04]} Kg6 {[%emt 0:00:10]} 26. Rxa6+ {[%emt 0:00:04] hollacompadre
won by resignation 1-0 White wins.} 1-0

[Event "Live Chess"]
[Site "Chess.com"]
[Date "2021.11.23"]
[Round "?"]
[White "Wirefish"]
[Black "pointerouge"]
[Result "1-0"]
[ECO "C41"]
[WhiteElo "1201"]
[BlackElo "1229"]
[PlyCount "67"]
[EventDate "2021.??.??"]
[TimeControl "1800"]
[WhiteClock "0:12:13"]
[BlackClock "0:12:40"]

{[%evp 0,67,23,24,18,18,83,46,89,45,132,110,168,113,122,104,153,155,149,141,
157,160,160,121,171,166,229,132,250,186,197,214,263,158,159,133,143,44,36,39,
303,317,332,289,287,169,176,138,150,140,148,40,334,350,353,326,338,327,340,297,
354,288,346,343,29995,29996,29997,29998,29999,-30000] COUNTER-ATTACK} 1. e4 {
[%emt 0:00:04]} e5 {[%emt 0:00:05]} 2. Nf3 {[%emt 0:00:04]} d6 {[%emt 0:00:02]}
3. Bc4 {[%emt 0:00:23]} h6 {[%emt 0:00:10]} 4. c3 {[%emt 0:00:15]} Be7 $2 {
[%emt 0:00:03]} 5. d4 {[%emt 0:00:08]} Bg4 {[%emt 0:00:07]} 6. h3 $6 {[%emt 0:
00:06]} Bh5 {[%emt 0:00:11]} 7. dxe5 {[%emt 0:00:22]} dxe5 $2 {[%emt 0:00:05]}
8. Qxd8+ {[%emt 0:00:27]} Bxd8 {[%emt 0:00:01]} 9. Nxe5 {[%emt 0:00:07]} Nd7 {
[%emt 0:01:05]} 10. Nxd7 {[%emt 0:00:18]} Kxd7 {[%emt 0:00:01]} 11. O-O {
[%emt 0:00:03]} Be7 {[%emt 0:00:11]} 12. Be3 {[%emt 0:00:23]} Bd6 {[%emt 0:00:
29]} 13. b4 {[%emt 0:00:13]} b6 {[%emt 0:00:25]} 14. f3 {[%emt 0:00:19]} Ne7 {
[%emt 0:00:09]} 15. Rd1 {[%emt 0:00:05]} Kc6 {[%emt 0:00:12]} 16. a4 {[%emt 0:
00:23]} Rad8 {[%emt 0:00:37]} 17. b5+ {[%emt 0:01:04]} Kb7 {[%emt 0:00:24]} 18.
Bd5+ $2 {[%emt 0:00:20]} Nxd5 $1 {[%emt 0:00:06]} 19. Rxd5 {[%emt 0:00:04]} f6
$4 {[%emt 0:00:33]} 20. Rxh5 {[%emt 0:00:10]} Be5 {[%emt 0:00:27]} 21. Kf2 {
[%emt 0:01:07]} Rd1 {[%emt 0:00:13]} 22. Ke2 {[%emt 0:00:36]} Rhd8 {[%emt 0:00:
57]} 23. f4 {[%emt 0:00:47]} Bxc3 {[%emt 0:00:10]} 24. Ra3 {[%emt 0:01:45]} Bb2
{[%emt 0:02:28]} 25. Nc3 $2 {[%emt 0:02:40]} R1d7 {[%emt 0:00:50]} 26. Rb3 {
[%emt 0:00:34]} Rd3 {[%emt 0:02:44]} 27. Rxb2 {[%emt 0:01:12]} Rxc3 {[%emt 0:
00:04]} 28. Rd5 {[%emt 0:00:51]} Re8 {[%emt 0:00:09]} 29. Kd2 {[%emt 0:00:42]}
Ra3 {[%emt 0:00:35]} 30. Rd7 {[%emt 0:00:22]} Rxe4 {[%emt 0:00:06] White used
a powerful counter attack} 31. Rc2 $3 {[%emt 0:01:37]} Rexe3 $2 {[%emt 0:02:48]
} 32. Rdxc7+ {[%emt 0:00:06]} Kb8 {[%emt 0:00:51]} 33. Rc8+ $1 {[%emt 0:00:06]}
Kb7 {[%emt 0:00:02]} 34. R2c7# {[%emt 0:00:04] Wirefish won by checkmate 1-0
White wins.} 1-0

[Event "Live Chess"]
[Site "Chess.com"]
[Date "2022.02.26"]
[Round "?"]
[White "Milena"]
[Black "Alexdoing"]
[Result "1-0"]
[ECO "D02"]
[WhiteElo "1788"]
[BlackElo "1842"]
[PlyCount "59"]
[EventDate "2022.??.??"]
[TimeControl "180"]
[WhiteClock "0:01:41"]
[BlackClock "0:01:23"]

{[%evp 0,59,23,27,29,27,25,15,33,53,140,140,141,115,67,40,67,40,89,89,82,58,81,
74,87,73,235,399,353,314,422,425,1124,1168,1144,1233,1236,1284,1300,1325,29991,
29992,29993,1112,1851,1431,1511,1537,29985,29986,29987,29988,29989,29990,29995,
29994,29995,29996,29997,29998,29999,-30000]} 1. d4 {[%emt 0:00:01] GREEK GIFT
SACRIFICE} d5 {[%emt 0:00:00]} 2. Nf3 {[%emt 0:00:01]} Nf6 {[%emt 0:00:00]} 3.
c4 {[%emt 0:00:00]} Nc6 {[%emt 0:00:00]} 4. cxd5 {[%emt 0:00:02]} Nxd5 {
[%emt 0:00:01]} 5. e4 $1 {[%emt 0:00:01]} Nb6 {[%emt 0:00:02]} 6. Nc3 {[%emt 0:
00:00]} e6 {[%emt 0:00:02]} 7. Bf4 $6 {[%emt 0:00:05]} Be7 $6 {[%emt 0:00:00]}
8. Nb5 $6 {[%emt 0:00:06]} Bd6 {[%emt 0:00:03]} 9. Nxd6+ {[%emt 0:00:01]} cxd6
{[%emt 0:00:01]} 10. Bd3 $6 {[%emt 0:00:06]} O-O {[%emt 0:00:02]} 11. O-O {
[%emt 0:00:01]} d5 $2 {[%emt 0:00:04]} 12. e5 $1 {[%emt 0:00:03]} Nb4 $2 {
[%emt 0:00:02]} 13. Bxh7+ $3 {[%emt 0:00:02]} Kxh7 {[%emt 0:00:04]} 14. Ng5+ {
[%emt 0:00:01]} Kg6 {[%emt 0:00:01]} 15. Qg4 {[%emt 0:00:07]} f6 {[%emt 0:00:
16]} 16. Nxe6+ {[%emt 0:00:02]} Kf7 {[%emt 0:00:02]} 17. Nxd8+ {[%emt 0:00:01]}
Rxd8 {[%emt 0:00:00]} 18. Qh5+ {[%emt 0:00:02]} Kg8 {[%emt 0:00:03]} 19. exf6 {
[%emt 0:00:03]} Nd3 $6 {[%emt 0:00:07]} 20. Qg6 {[%emt 0:00:10]} Rd7 {[%emt 0:
00:08]} 21. Qxd3 {[%emt 0:00:03]} gxf6 {[%emt 0:00:02]} 22. Qg6+ {[%emt 0:00:
04]} Rg7 {[%emt 0:00:01]} 23. Qxf6 {[%emt 0:00:01]} Bd7 $6 {[%emt 0:00:02]} 24.
Be5 {[%emt 0:00:02]} Rh7 {[%emt 0:00:27]} 25. Qg6+ {[%emt 0:00:02]} Kf8 {
[%emt 0:00:01]} 26. Qxh7 {[%emt 0:00:01]} Ke8 {[%emt 0:00:02]} 27. Bd6 {
[%emt 0:00:02]} Kd8 {[%emt 0:00:01]} 28. Qe7+ {[%emt 0:00:07]} Kc8 {[%emt 0:00:
01]} 29. Qf8+ {[%emt 0:00:01]} Be8 {[%emt 0:00:02]} 30. Qxe8# {[%emt 0:00:01]
Milena won by checkmate 1-0 White wins.} 1-0

[Event "Live Chess"]
[Site "Chess.com"]
[Date "2023.08.05"]
[Round "?"]
[White "ryanovster"]
[Black "Marcovit"]
[Result "1-0"]
[ECO "C41"]
[WhiteElo "1340"]
[BlackElo "1295"]
[PlyCount "79"]
[EventDate "2023.??.??"]
[TimeControl "600"]
[WhiteClock "0:04:34"]
[BlackClock "0:00:42"]

{[%evp 0,79,21,16,16,16,81,2,7,-4,33,33,47,36,87,74,106,106,183,21,21,-49,220,
94,227,117,133,56,102,96,181,78,61,50,86,17,105,134,146,147,147,131,131,-87,
-94,-111,37,26,91,-155,-224,-224,-197,-212,100,113,75,77,399,1,0,-116,-98,-149,
-129,-140,0,-180,-52,-57,-6,-63,0,0,120,105,1826,2054,2260,2437,2523,1240]} 1.
e4 {[%emt 0:00:00] ADVANCED PAWN} e5 {[%emt 0:00:00]} 2. Nf3 {[%emt 0:00:01]}
d6 {[%emt 0:00:02]} 3. c3 {[%emt 0:00:01]} Nf6 {[%emt 0:00:06]} 4. Qc2 {
[%emt 0:00:01]} c6 {[%emt 0:00:11]} 5. d4 {[%emt 0:00:02]} exd4 $6 {[%emt 0:00:
24]} 6. cxd4 {[%emt 0:00:03]} Qe7 {[%emt 0:00:02]} 7. Bd3 {[%emt 0:00:05]} d5
$6 {[%emt 0:00:07]} 8. e5 {[%emt 0:00:02]} Ng4 $6 {[%emt 0:00:07]} 9. Bg5 $6 {
[%emt 0:00:06]} f6 {[%emt 0:00:10]} 10. Bf4 $2 {[%emt 0:00:06]} c5 {[%emt 0:00:
18]} 11. O-O {[%emt 0:00:07]} c4 $6 {[%emt 0:00:07]} 12. Be2 {[%emt 0:00:01]}
fxe5 {[%emt 0:00:45]} 13. Nxe5 {[%emt 0:00:13]} Nxe5 {[%emt 0:00:04]} 14. Bxe5
{[%emt 0:00:01]} Nd7 $2 {[%emt 0:00:05]} 15. f4 {[%emt 0:00:18]} Nxe5 $1 {
[%emt 0:00:04]} 16. fxe5 {[%emt 0:00:01]} g6 $6 {[%emt 0:00:01]} 17. Nd2 $2 {
[%emt 0:00:13]} Bf5 $6 {[%emt 0:00:02]} 18. Rxf5 $3 {[%emt 0:00:25]} gxf5 {
[%emt 0:00:06]} 19. Qxf5 {[%emt 0:00:06]} Bg7 {[%emt 0:00:22]} 20. Bh5+ {
[%emt 0:00:04]} Kd8 {[%emt 0:00:05]} 21. Qf7 $2 {[%emt 0:00:19]} Qxf7 $1 {
[%emt 0:00:03]} 22. Bxf7 {[%emt 0:00:02]} Rf8 $4 {[%emt 0:00:01]} 23. Bxd5 {
[%emt 0:00:02]} Rc8 {[%emt 0:00:19]} 24. Bxc4 $2 {[%emt 0:00:04]} Bh6 $1 {
[%emt 0:00:27]} 25. Be6 {[%emt 0:00:21]} Rc6 {[%emt 0:00:08]} 26. Bd5 {[%emt 0:
00:07]} Rb6 {[%emt 0:00:08]} 27. Nc4 $1 {[%emt 0:00:04]} Rb4 {[%emt 0:00:31]}
28. b3 {[%emt 0:00:07]} Be3+ $4 {[%emt 0:00:09]} 29. Kh1 {[%emt 0:00:05]} Bxd4
{[%emt 0:00:02]} 30. Re1 $6 {[%emt 0:00:20]} Rf2 {[%emt 0:00:56]} 31. h3 $2 {
[%emt 0:00:07]} Rxa2 {[%emt 0:00:06]} 32. e6 {[%emt 0:00:01]} Ke7 $2 {[%emt 0:
00:04]} 33. Rf1 {[%emt 0:00:15]} Bf6 {[%emt 0:00:25]} 34. Ne3 {[%emt 0:00:47]}
Ra6 $6 {[%emt 0:01:45]} 35. Nf5+ {[%emt 0:00:03]} Kd8 $6 {[%emt 0:00:11]} 36.
Re1 {[%emt 0:00:07]} Rb5 {[%emt 0:00:14]} 37. e7+ {[%emt 0:00:06]} Ke8 $4 {
[%emt 0:00:04]} 38. Bf7+ $3 {[%emt 0:00:18]} Kd7 {[%emt 0:00:36]} 39. e8=Q+ {
[%emt 0:00:02]} Kc7 {[%emt 0:00:01]} 40. Rc1+ {[%emt 0:00:13] ryanovster won
on time 1-0 White wins on time.} 1-0